[Event "Moscow-Open 2021_A"]
[Site "Moscow, Russia"]
[Date "2021.02.26"]
[Round "7.2"]
[White "Bocharov, Ivan"]
[Black "Afanasiev, Nikita"]
[Result "0-1"]
[ECO "C42"]
[WhiteElo "2568"]
[BlackElo "2519"]
[Annotator "zimin"]
[PlyCount "81"]
[EventDate "2021.??.??"]
[TimeControl "90+30"]
[WhiteClock "0:29:25"]
[BlackClock "0:06:11"]

{[%evp 0,68,30,18,63,63,48,-27,91,91,64,67,67,78,43,37,65,62,60,-17,-25,-25,
-21,-42,-45,-45,-18,-36,-49,-49,-3,-16,-16,-16,-51,-51,-38,-38,-27,-41,-58,
-138,-134,-136,-136,-140,-186,-185,-163,-245,-160,-188,-171,-232,-173,-197,
-130,-220,-142,-178,-178,-174,-174,-174,-168,-168,-180,-175,-181,-182,-184]} 1.
e4 {[%emt 0:00:00]} e5 {[%emt 0:00:00]} 2. Nf3 {[%emt 0:00:00]} Nf6 {[%emt 0:
00:00]} 3. Nxe5 {[%emt 0:00:00]} Nxe4 {[%emt 0:00:00]} 4. Qe2 {[%emt 0:00:00]}
Qe7 {[%emt 0:00:00]} 5. Qxe4 {[%emt 0:00:00]} d6 {[%emt 0:00:00]} 6. f4 {
[%emt 0:00:00]} f5 {[%emt 0:00:00]} 7. Qe3 {[%emt 0:00:00]} dxe5 {[%emt 0:00:
00]} 8. fxe5 {[%emt 0:00:00]} Nc6 {[%emt 0:00:00]} 9. d4 {[%emt 0:00:00]} Qh4+
{[%emt 0:00:00]} 10. g3 {[%emt 0:00:00]} Qxd4 {[%emt 0:00:00]} 11. Qxd4 {
[%emt 0:00:00]} Nxd4 {[%emt 0:00:00]} 12. Bd3 {[%emt 0:00:00]} Be6 {[%emt 0:00:
00]} 13. Kf2 {[%emt 0:00:00]} Bc5 {[%emt 0:00:00]} 14. Be3 {[%emt 0:00:00]}
O-O-O {[%emt 0:00:00]} 15. Rd1 {[%emt 0:00:00]} Bb6 {[%emt 0:00:00]} 16. Nc3 {
[%emt 0:00:00]} Nc6 {[%emt 0:00:00]} 17. Bxb6 {[%emt 0:00:00]} axb6 {[%emt 0:
00:00]} 18. Re1 {[%emt 0:00:00]} g5 {[%emt 0:00:00]} 19. Rad1 {[%emt 0:00:00]}
h5 {[%emt 0:00:00]} 20. h4 {[%emt 0:00:00]} gxh4 {[%emt 0:00:00]} 21. gxh4 {
[%emt 0:00:00]} Rd4 {[%emt 0:00:00]} 22. Rh1 {[%emt 0:00:00]} Nxe5 {[%emt 0:00:
00]} 23. Be2 {[%emt 0:00:00]} Rf4+ {[%emt 0:00:00]} 24. Ke3 {[%emt 0:00:00]}
Rb4 {[%emt 0:00:00]} 25. Rd4 {[%emt 0:00:00]} Rxb2 {[%emt 0:00:00]} 26. Ra4 {
[%emt 0:00:00]} Kb8 {[%emt 0:00:00]} 27. Kd2 {[%emt 0:00:00]} Nc6 {[%emt 0:00:
00]} 28. Re1 {[%emt 0:00:00]} Nb4 {[%emt 0:01:54]} 29. Bd1 {[%emt 0:00:00]}
Nxa2 {[%emt 0:00:10]} 30. Nxa2 {[%emt 0:00:00]} Rxa2 {[%emt 0:00:34]} 31. Rxa2
{[%emt 0:00:00]} Bxa2 {[%emt 0:00:03]} 32. Re5 {[%emt 0:00:00]} Rd8+ {[%emt 0:
00:47]} 33. Kc1 {[%emt 0:00:00]} Rd4 {[%emt 0:00:19]} 34. Rxf5 {[%emt 0:00:00]}
Rxh4 {[%emt 0:00:08]} 35. Bxh5 {[%emt 0:00:00]} c6 {[%emt 0:02:32]} 36. Rg5 {
[%emt 0:00:00]} Bd5 {[%emt 0:00:23]} 37. Bg4 {[%emt 0:00:00]} Rh1+ {[%emt 0:01:
04]} 38. Kb2 {[%emt 0:00:00]} Rg1 {[%emt 0:00:15]} 39. Rg6 {[%emt 0:00:00]} b5
{[%emt 0:05:15]} 40. Kc3 {[%emt 0:00:00]} Ka7 {[%emt 0:01:55]} 41. Kd4 {
[%emt 0:01:07]} 0-1

[Event "Moscow-Open 2021_A"]
[Site "Moscow, Russia"]
[Date "2021.02.26"]
[Round "7.3"]
[White "Kukhmazov, Arsen"]
[Black "Makarian, Rudik"]
[Result "1/2-1/2"]
[ECO "A13"]
[WhiteElo "2442"]
[BlackElo "2458"]
[Annotator "zimin"]
[PlyCount "41"]
[EventDate "2021.??.??"]
[TimeControl "90+30"]
[WhiteClock "1:36:12"]
[BlackClock "1:37:07"]

{[%evp 0,41,30,30,30,-14,-3,-16,31,11,1,1,-7,-9,21,28,29,-1,22,14,2,2,-13,-13,
4,-30,-27,-18,-20,-1,-5,-16,4,6,19,-1,16,15,5,2,18,9,21,-9]} 1. d4 {[%emt 0:00:
00]} d5 {[%emt 0:00:00]} 2. c4 {[%emt 0:00:00]} e6 {[%emt 0:00:00]} 3. Nc3 {
[%emt 0:00:00]} a6 {[%emt 0:00:00]} 4. cxd5 {[%emt 0:00:00]} exd5 {[%emt 0:00:
00]} 5. Nf3 {[%emt 0:00:00]} Nf6 {[%emt 0:00:00]} 6. g3 {[%emt 0:00:00]} Bd6 {
[%emt 0:00:00]} 7. Bg2 {[%emt 0:00:00]} O-O {[%emt 0:00:00]} 8. O-O {[%emt 0:
00:00]} c6 {[%emt 0:00:00]} 9. Bg5 {[%emt 0:00:00]} Nbd7 {[%emt 0:00:00]} 10.
e4 {[%emt 0:00:00]} dxe4 {[%emt 0:00:00]} 11. Nxe4 {[%emt 0:00:00]} Be7 {
[%emt 0:00:00]} 12. Bxf6 {[%emt 0:00:00]} Nxf6 {[%emt 0:00:00]} 13. Nc5 {
[%emt 0:00:00]} Qc7 {[%emt 0:00:00]} 14. Re1 {[%emt 0:00:00]} Rd8 {[%emt 0:00:
00]} 15. Qb3 {[%emt 0:00:00]} Bd6 {[%emt 0:00:00]} 16. Rad1 {[%emt 0:00:00]}
Rb8 {[%emt 0:00:00]} 17. Ne5 {[%emt 0:00:00]} Bf5 {[%emt 0:00:00]} 18. Nc4 {
[%emt 0:00:00]} Bf8 {[%emt 0:00:00]} 19. Ne5 {[%emt 0:00:00]} Bd6 {[%emt 0:00:
00]} 20. Nc4 {[%emt 0:00:00]} Bf8 {[%emt 0:00:00]} 21. Ne5 {[%emt 0:00:00]}
1/2-1/2

[Event "Moscow-Open 2021_A"]
[Site "Moscow, Russia"]
[Date "2021.02.26"]
[Round "7.4"]
[White "Badelka, Olga"]
[Black "Iljiushenok, Ilia"]
[Result "1-0"]
[ECO "E62"]
[WhiteElo "2428"]
[BlackElo "2534"]
[Annotator "zimin"]
[PlyCount "97"]
[EventDate "2021.??.??"]
[TimeControl "90+30"]
[WhiteClock "0:02:43"]
[BlackClock "0:01:43"]

{[%evp 0,61,30,24,24,-9,55,42,48,4,23,12,14,25,46,34,33,23,45,59,63,38,28,16,
16,16,26,11,35,27,32,12,18,18,49,39,43,40,77,63,83,89,68,30,93,39,68,66,38,85,
29,25,-10,-26,-8,-8,-11,-32,4,-35,-84,-59,-54,-77]} 1. d4 {[%emt 0:00:00]} Nf6
{[%emt 0:00:00]} 2. c4 {[%emt 0:00:00]} g6 {[%emt 0:00:00]} 3. Nf3 {[%emt 0:00:
00]} Bg7 {[%emt 0:00:00]} 4. g3 {[%emt 0:00:00]} O-O {[%emt 0:00:00]} 5. Bg2 {
[%emt 0:00:00]} d6 {[%emt 0:00:00]} 6. Nc3 {[%emt 0:00:00]} c6 {[%emt 0:00:00]}
7. O-O {[%emt 0:00:00]} Bf5 {[%emt 0:00:00]} 8. Ng5 {[%emt 0:00:00]} e5 {
[%emt 0:00:00]} 9. dxe5 {[%emt 0:00:00]} dxe5 {[%emt 0:00:00]} 10. Qb3 {
[%emt 0:00:00]} Qe7 {[%emt 0:00:00]} 11. h3 {[%emt 0:00:00]} Na6 {[%emt 0:00:
00]} 12. Be3 {[%emt 0:00:00]} h6 {[%emt 0:00:00]} 13. Nf3 {[%emt 0:00:00]} g5 {
[%emt 0:00:00]} 14. Rad1 {[%emt 0:00:00]} Bg6 {[%emt 0:00:00]} 15. Rd2 {
[%emt 0:00:00]} e4 {[%emt 0:00:00]} 16. Nd4 {[%emt 0:00:00]} Qc7 {[%emt 0:00:
00]} 17. Rfd1 {[%emt 0:00:00]} Rfe8 {[%emt 0:00:00]} 18. Qc2 {[%emt 0:00:00]}
Re5 {[%emt 0:00:00]} 19. a3 {[%emt 0:00:00]} Nc5 {[%emt 0:00:00]} 20. b4 {
[%emt 0:00:00]} Ncd7 {[%emt 0:00:00]} 21. Nb3 {[%emt 0:00:00]} Rae8 {[%emt 0:
00:00]} 22. b5 {[%emt 0:00:00]} R5e7 {[%emt 0:00:00]} 23. bxc6 {[%emt 0:00:00]}
bxc6 {[%emt 0:00:00]} 24. Na4 {[%emt 0:00:00]} Ne5 {[%emt 0:00:00]} 25. Qc1 {
[%emt 0:00:00]} Nfd7 {[%emt 0:06:55]} 26. Nbc5 {[%emt 0:00:00]} f5 {[%emt 0:00:
03]} 27. Nxd7 {[%emt 0:00:00]} Nxd7 {[%emt 0:00:19]} 28. Rd6 {[%emt 0:00:00]}
Ne5 {[%emt 0:00:01]} 29. c5 {[%emt 0:05:43]} Bf7 {[%emt 0:00:09]} 30. Nb2 {
[%emt 0:01:53]} Bb3 {[%emt 0:02:59]} 31. Rf1 {[%emt 0:00:17]} Re6 {[%emt 0:01:
08]} 32. Nd1 {[%emt 0:03:11]} Rxd6 {[%emt 0:00:47]} 33. cxd6 {[%emt 0:00:02]}
Qxd6 {[%emt 0:00:03]} 34. Bxa7 {[%emt 0:01:20]} Qe6 {[%emt 0:02:59]} 35. Bd4 {
[%emt 0:03:30]} Rd8 {[%emt 0:01:11]} 36. Bxe5 {[%emt 0:00:36]} Bxe5 {[%emt 0:
00:02]} 37. Ne3 {[%emt 0:00:23]} Bd4 {[%emt 0:01:06]} 38. g4 {[%emt 0:00:34]}
f4 {[%emt 0:00:11]} 39. Nf5 {[%emt 0:00:11]} Bc4 {[%emt 0:01:16]} 40. Rd1 {
[%emt 0:01:34]} Bb6 {[%emt 0:00:34]} 41. Rxd8+ Bxd8 {[%emt 0:00:01]} 42. Qb2 {
[%emt 0:01:25]} Qf6 {[%emt 0:01:34]} 43. Qc2 {[%emt 0:00:19]} Be6 {[%emt 0:01:
07]} 44. Bxe4 {[%emt 0:00:13]} Bd7 {[%emt 0:00:03]} 45. Qd3 {[%emt 0:00:55]}
Bxf5 {[%emt 0:00:16]} 46. Bxf5 {[%emt 0:00:06]} Bc7 {[%emt 0:00:47]} 47. Qd7 {
[%emt 0:00:41]} Qd6 {[%emt 0:00:12]} 48. Be6+ {[%emt 0:00:17]} Kh8 {[%emt 0:00:
04]} 49. Qe8+ {[%emt 0:00:07]} 1-0

[Event "Moscow-Open 2021_A"]
[Site "Moscow, Russia"]
[Date "2021.02.26"]
[Round "7.5"]
[White "Lobanov, Sergei"]
[Black "Lazavik, Denis"]
[Result "1-0"]
[ECO "C77"]
[WhiteElo "2516"]
[BlackElo "2442"]
[Annotator "zimin"]
[PlyCount "107"]
[EventDate "2021.??.??"]
[TimeControl "90+30"]
[WhiteClock "0:18:18"]
[BlackClock "0:02:37"]

{[%evp 0,40,30,45,38,38,12,8,25,-22,3,3,20,-2,7,16,21,9,13,17,30,28,30,-15,5,5,
4,6,24,0,13,14,27,23,7,31,27,26,30,43,51,19,52]} 1. e4 {[%emt 0:00:00]} e5 {
[%emt 0:00:00]} 2. Nf3 {[%emt 0:00:00]} Nc6 {[%emt 0:00:00]} 3. Bb5 {[%emt 0:
00:00]} a6 {[%emt 0:00:00]} 4. Ba4 {[%emt 0:00:00]} Nf6 {[%emt 0:00:00]} 5. O-O
{[%emt 0:00:00]} Be7 {[%emt 0:00:00]} 6. d3 {[%emt 0:00:00]} b5 {[%emt 0:00:00]
} 7. Bb3 {[%emt 0:00:00]} d6 {[%emt 0:00:00]} 8. a3 {[%emt 0:00:00]} O-O {
[%emt 0:00:00]} 9. Nc3 {[%emt 0:00:00]} Na5 {[%emt 0:00:00]} 10. Ba2 {[%emt 0:
00:00]} Be6 {[%emt 0:00:00]} 11. b4 {[%emt 0:00:00]} Bxa2 {[%emt 0:00:00]} 12.
Rxa2 {[%emt 0:00:00]} Nc6 {[%emt 0:00:00]} 13. Bg5 {[%emt 0:00:00]} Ng4 {
[%emt 0:00:00]} 14. Bd2 {[%emt 0:00:00]} Nf6 {[%emt 0:00:00]} 15. Re1 {[%emt 0:
00:00]} Qd7 {[%emt 0:00:00]} 16. Nd5 {[%emt 0:00:00]} Nxd5 {[%emt 0:00:00]} 17.
exd5 {[%emt 0:00:00]} Na7 {[%emt 0:00:00]} 18. a4 {[%emt 0:00:00]} c6 {[%emt 0:
00:00]} 19. dxc6 {[%emt 0:00:00]} Nxc6 {[%emt 0:00:00]} 20. c4 {[%emt 0:00:00]}
d5 {[%emt 0:00:00]} 21. axb5 {[%emt 0:00:00]} axb5 {[%emt 0:00:00]} 22. Rxa8 {
[%emt 0:00:00]} Rxa8 {[%emt 0:00:00]} 23. cxb5 {[%emt 0:00:00]} Nxb4 {[%emt 0:
00:00]} 24. Nxe5 {[%emt 0:00:00]} Qxb5 {[%emt 0:00:00]} 25. Qg4 {[%emt 0:00:00]
} Nc2 {[%emt 0:00:00]} 26. Nxf7 {[%emt 0:00:00]} Nxe1 {[%emt 0:00:00]} 27. Qe6
{[%emt 0:00:00]} Qb8 {[%emt 0:00:00]} 28. Nh6+ {[%emt 0:00:00]} Kh8 {[%emt 0:
00:00]} 29. Bxe1 {[%emt 0:00:00]} Qf8 {[%emt 0:00:00]} 30. Bc3 {[%emt 0:00:00]}
Bf6 {[%emt 0:00:00]} 31. Nf7+ {[%emt 0:00:00]} Kg8 {[%emt 0:00:00]} 32. Ng5+ {
[%emt 0:00:00]} Kh8 {[%emt 0:00:00]} 33. Nf7+ {[%emt 0:00:00]} Kg8 {[%emt 0:00:
00]} 34. Qxd5 {[%emt 0:00:00]} Rb8 {[%emt 0:00:00]} 35. Ne5+ {[%emt 0:00:00]}
Kh8 {[%emt 0:00:00]} 36. h3 {[%emt 0:00:00]} Bxe5 {[%emt 0:00:00]} 37. Bxe5 {
[%emt 0:00:00]} Rd8 {[%emt 0:00:00]} 38. Qe4 {[%emt 0:00:00]} Qf7 {[%emt 0:00:
00]} 39. d4 {[%emt 0:00:00]} Kg8 {[%emt 0:00:00]} 40. f4 {[%emt 0:00:00]} Qd7 {
[%emt 0:00:00]} 41. Kh2 {[%emt 0:00:00]} Qf7 {[%emt 0:00:00]} 42. Qf3 {[%emt 0:
00:00]} g6 {[%emt 0:00:00]} 43. Qc6 {[%emt 0:00:00]} Re8 {[%emt 0:00:00]} 44.
Kg3 {[%emt 0:00:00]} Rf8 {[%emt 0:05:58]} 45. d5 {[%emt 0:00:00]} g5 {[%emt 0:
00:57]} 46. fxg5 {[%emt 0:00:00]} Qe7 {[%emt 0:06:38]} 47. Bf6 {[%emt 0:00:00]}
Qe3+ {[%emt 0:00:22]} 48. Kh4 {[%emt 0:00:00]} Qe1+ {[%emt 0:04:14]} 49. Kh5 {
[%emt 0:00:00]} Qe2+ {[%emt 0:00:51]} 50. Kh6 {[%emt 0:01:36]} Qd3 {[%emt 0:03:
58]} 51. Qe6+ {[%emt 0:01:39]} Rf7 {[%emt 0:00:06]} 52. Be7 {[%emt 0:05:43]}
Qc3 {[%emt 0:01:12]} 53. d6 {[%emt 0:00:36]} Qc6 {[%emt 0:01:07]} 54. g6 {
[%emt 0:00:38]} 1-0

[Event "Moscow-Open 2021_A"]
[Site "Moscow, Russia"]
[Date "2021.02.26"]
[Round "7.6"]
[White "Kardashevskiy, Evgeny"]
[Black "Maiorov, Nikita"]
[Result "1/2-1/2"]
[ECO "E18"]
[WhiteElo "2427"]
[BlackElo "2495"]
[Annotator "zimin"]
[PlyCount "81"]
[EventDate "2021.??.??"]
[TimeControl "1"]
[WhiteClock "0:19:17"]
[BlackClock "0:20:04"]

{[%evp 0,52,30,35,30,21,30,-16,23,-15,14,14,15,18,13,20,23,4,23,34,90,31,31,50,
46,20,32,-3,89,-12,84,77,89,82,103,35,73,25,41,68,111,126,123,119,149,132,144,
127,138,120,144,119,117,98,89]} 1. d4 {[%emt 0:00:00]} Nf6 {[%emt 0:00:00]} 2.
Nf3 {[%emt 0:00:00]} e6 {[%emt 0:00:00]} 3. c4 {[%emt 0:00:00]} b6 {[%emt 0:00:
00]} 4. g3 {[%emt 0:00:00]} Bb7 {[%emt 0:00:00]} 5. Bg2 {[%emt 0:00:00]} Be7 {
[%emt 0:00:00]} 6. O-O {[%emt 0:00:00]} O-O {[%emt 0:00:00]} 7. Nc3 {[%emt 0:
00:00]} Ne4 {[%emt 0:00:00]} 8. Bd2 {[%emt 0:00:00]} f5 {[%emt 0:00:00]} 9. Ne5
{[%emt 0:00:00]} Bf6 {[%emt 0:00:00]} 10. Nxe4 {[%emt 0:00:00]} Bxe4 {[%emt 0:
00:00]} 11. Bxe4 {[%emt 0:00:00]} fxe4 {[%emt 0:00:00]} 12. Qc2 {[%emt 0:00:00]
} d5 {[%emt 0:00:00]} 13. cxd5 {[%emt 0:00:00]} exd5 {[%emt 0:00:00]} 14. b4 {
[%emt 0:00:00]} a6 {[%emt 0:00:00]} 15. Rac1 {[%emt 0:00:00]} Ra7 {[%emt 0:00:
00]} 16. Qb3 {[%emt 0:00:00]} Re8 {[%emt 0:00:00]} 17. Rfd1 {[%emt 0:00:00]}
Re6 {[%emt 0:00:00]} 18. f4 {[%emt 0:00:00]} exf3 {[%emt 0:00:00]} 19. exf3 {
[%emt 0:00:00]} c6 {[%emt 0:00:00]} 20. f4 {[%emt 0:00:00]} Re8 {[%emt 0:00:00]
} 21. a4 {[%emt 0:00:00]} b5 {[%emt 0:00:00]} 22. a5 {[%emt 0:00:00]} Qd6 {
[%emt 0:00:00]} 23. Rc5 {[%emt 0:00:00]} Rc7 {[%emt 0:00:00]} 24. Rdc1 {
[%emt 0:00:00]} Qe6 {[%emt 0:00:00]} 25. Qd3 {[%emt 0:00:00]} g6 {[%emt 0:00:
00]} 26. Kg2 {[%emt 0:00:00]} Rec8 {[%emt 0:00:00]} 27. R5c2 {[%emt 0:00:00]}
Bg7 {[%emt 0:00:00]} 28. Re1 {[%emt 0:00:00]} Qf6 {[%emt 0:00:00]} 29. Be3 {
[%emt 0:00:00]} Nd7 {[%emt 0:00:00]} 30. Rf2 {[%emt 0:00:00]} Qf5 {[%emt 0:00:
00]} 31. Qxf5 {[%emt 0:00:00]} gxf5 {[%emt 0:00:00]} 32. Rc2 {[%emt 0:00:00]}
Nf6 {[%emt 0:00:00]} 33. Rec1 {[%emt 0:00:00]} Ne4 {[%emt 0:00:00]} 34. Kf3 {
[%emt 0:00:00]} Kf8 {[%emt 0:00:00]} 35. Ke2 {[%emt 0:00:00]} Ke7 {[%emt 0:00:
24]} 36. Kd3 {[%emt 0:00:00]} Kd6 {[%emt 0:00:07]} 37. Rg2 {[%emt 0:00:16]} Ke6
{[%emt 0:00:46]} 38. Rgc2 {[%emt 0:01:51]} Kd6 {[%emt 0:00:03]} 39. Rg2 {
[%emt 0:00:08]} Ke6 {[%emt 0:00:03]} 40. Rgc2 {[%emt 0:00:12]} Kd6 {[%emt 0:00:
03]} 41. Rg2 {[%emt 0:00:16]} 1/2-1/2

[Site "Moscow"]
[Date "2021.02.26"]
[Round "7.7"]
[White "Assaubayeva, Bibisara"]
[Black "Faizrakhmanov, Ramil"]
[Result "0-1"]
[ECO "A00"]
[WhiteElo "2378"]
[BlackElo "2476"]
[PlyCount "80"]
[EventDate "2021.02.20"]

1. d4 Nf6 2. c4 e6 3. Nf3 b6 4. a3 Bb7 5. Bf4 g6 6. Nc3 Bg7 7. Qc2 O-O 8. e3 d6
9. Be2 Nbd7 10. h3 Nh5 11. Bh2 f5 12. d5 Bxc3+ 13. Qxc3 exd5 14. cxd5 Bxd5 15.
Rc1 Nc5 16. Bc4 Bxc4 17. Qxc4+ d5 18. Qc3 f4 19. O-O Rc8 20. Rfd1 c6 21. exf4
Nxf4 22. Qe3 Nce6 23. Bg3 c5 24. b4 d4 25. Qe4 Qd5 26. Qxd5 Nxd5 27. bxc5 bxc5
28. Ne5 Nef4 29. Bxf4 Nxf4 30. Kf1 Nd5 31. Rd3 Nc3 32. Nc4 Rce8 33. f3 Re6 34.
Rd2 Rb8 35. h4 Ra6 36. h5 gxh5 37. Re1 Ra4 38. Ne5 Re8 39. Rb2 Nd5 40. Kf2 Rxa3
0-1

[Event "Moscow-Open 2021_A"]
[Site "Moscow, Russia"]
[Date "2021.02.27"]
[Round "8.1"]
[White "Afanasiev, Nikita"]
[Black "Stupak, Kirill"]
[Result "1/2-1/2"]
[ECO "C09"]
[WhiteElo "2519"]
[BlackElo "2492"]
[Annotator "zimin"]
[PlyCount "80"]
[EventDate "2021.??.??"]
[TimeControl "90+30"]
[WhiteClock "0:02:24"]
[BlackClock "0:00:51"]

{[%evp 0,80,16,28,55,22,54,47,62,41,46,30,51,46,34,7,72,44,44,30,48,38,38,40,
43,58,38,23,28,15,20,6,6,3,24,5,10,10,10,20,24,24,18,26,26,-21,8,-8,-24,-24,0,
0,17,32,57,57,38,6,41,20,21,-2,0,-10,-6,0,17,8,10,12,12,10,13,7,7,3,26,7,17,11,
12,0,18]} 1. e4 {[%emt 0:00:00]} e6 {[%emt 0:00:00]} 2. d4 {[%emt 0:00:00]} d5
{[%emt 0:00:00]} 3. Nd2 {[%emt 0:00:00]} c5 {[%emt 0:00:00]} 4. Ngf3 {[%emt 0:
00:00]} Nc6 {[%emt 0:00:00]} 5. exd5 {[%emt 0:00:00]} exd5 {[%emt 0:00:00]} 6.
Bb5 {[%emt 0:00:00]} Qe7+ {[%emt 0:00:00]} 7. Be2 {[%emt 0:00:00]} Qc7 {
[%emt 0:00:00]} 8. O-O {[%emt 0:00:00]} Nf6 {[%emt 0:00:00]} 9. Re1 {[%emt 0:
00:00]} cxd4 {[%emt 0:00:00]} 10. Nb3 {[%emt 0:00:00]} Bb4 {[%emt 0:00:00]} 11.
Bd2 {[%emt 0:00:00]} Bxd2 {[%emt 0:00:00]} 12. Qxd2 {[%emt 0:00:00]} O-O {
[%emt 0:00:00]} 13. Nfxd4 {[%emt 0:00:00]} Re8 {[%emt 0:00:00]} 14. Bb5 {
[%emt 0:00:00]} Bd7 {[%emt 0:00:00]} 15. Bxc6 {[%emt 0:00:00]} bxc6 {[%emt 0:
00:00]} 16. Nc5 {[%emt 0:00:00]} Ne4 {[%emt 0:00:00]} 17. Nxe4 {[%emt 0:00:00]}
dxe4 {[%emt 0:00:00]} 18. Nb3 {[%emt 0:00:00]} Bf5 {[%emt 0:00:00]} 19. Qa5 {
[%emt 0:00:00]} Qe5 {[%emt 0:00:00]} 20. Qxe5 {[%emt 0:00:00]} Rxe5 {[%emt 0:
00:00]} 21. Rad1 {[%emt 0:00:00]} e3 {[%emt 0:00:00]} 22. f4 {[%emt 0:00:00]}
Re4 {[%emt 0:00:00]} 23. Rd4 {[%emt 0:00:00]} Rae8 {[%emt 0:00:00]} 24. Rxe4 {
[%emt 0:00:00]} Rxe4 {[%emt 0:00:00]} 25. g3 {[%emt 0:00:21]} Ra4 {[%emt 0:04:
29]} 26. Rxe3 {[%emt 0:02:18]} g6 {[%emt 0:00:28]} 27. a3 {[%emt 0:06:29]} Bxc2
{[%emt 0:01:38]} 28. Nc5 {[%emt 0:00:16]} Rd4 {[%emt 0:03:53]} 29. Re8+ {
[%emt 0:01:41]} Kg7 {[%emt 0:00:01]} 30. Kf2 {[%emt 0:00:06]} Rc4 {[%emt 0:02:
16]} 31. Nb7 {[%emt 0:00:56]} Be4 {[%emt 0:00:38]} 32. Ke3 {[%emt 0:01:27]} Bf5
{[%emt 0:01:07]} 33. Rd8 {[%emt 0:00:26]} Re4+ {[%emt 0:00:33]} 34. Kf2 {
[%emt 0:00:21]} Rc4 {[%emt 0:01:30]} 35. Rd2 {[%emt 0:00:04]} Be6 {[%emt 0:01:
16]} 36. Nd6 {[%emt 0:00:27]} Rc1 {[%emt 0:00:21]} 37. Ne4 {[%emt 0:01:01]} Kf8
{[%emt 0:01:09]} 38. Ke3 {[%emt 0:01:28]} Ke7 {[%emt 0:00:01]} 39. Nc3 {
[%emt 0:00:28]} f5 {[%emt 0:00:57]} 40. Ne2 {[%emt 0:01:17]} Rh1 {[%emt 0:00:
22] Ke4} 1/2-1/2

[Event "Moscow-Open 2021_A"]
[Site "Moscow, Russia"]
[Date "2021.02.27"]
[Round "8.2"]
[White "Rozum, Ivan"]
[Black "Badelka, Olga"]
[Result "1-0"]
[ECO "A13"]
[WhiteElo "2546"]
[BlackElo "2428"]
[Annotator "zimin"]
[PlyCount "100"]
[EventDate "2021.??.??"]
[TimeControl "90+30"]
[WhiteClock "0:04:22"]
[BlackClock "0:01:37"]

{[%evp 0,55,45,16,17,-26,-9,-34,-19,-29,-21,-8,-8,-33,20,-4,20,-5,12,-12,-11,4,
0,-4,47,3,-3,-16,-9,-25,27,27,15,-3,-12,17,55,58,34,29,96,64,64,78,131,86,98,
83,83,81,81,81,104,88,84,79,90,73]} 1. Nf3 {[%emt 0:00:00]} Nf6 {[%emt 0:00:00]
} 2. c4 {[%emt 0:00:00]} e6 {[%emt 0:00:00]} 3. g3 {[%emt 0:00:00]} d5 {
[%emt 0:00:00]} 4. Bg2 {[%emt 0:00:00]} dxc4 {[%emt 0:00:00]} 5. Qa4+ {[%emt 0:
00:00]} Nbd7 {[%emt 0:00:00]} 6. Qxc4 {[%emt 0:00:00]} a6 {[%emt 0:00:00]} 7.
Qc2 {[%emt 0:00:00]} c5 {[%emt 0:00:00]} 8. O-O {[%emt 0:00:00]} b5 {[%emt 0:
00:00]} 9. d3 {[%emt 0:00:00]} Bb7 {[%emt 0:00:00]} 10. Nc3 {[%emt 0:00:00]}
Be7 {[%emt 0:00:00]} 11. a4 {[%emt 0:00:00]} Qb6 {[%emt 0:00:00]} 12. e4 {
[%emt 0:00:00]} O-O {[%emt 0:00:00]} 13. Be3 {[%emt 0:00:00]} Ng4 {[%emt 0:00:
00]} 14. Bf4 {[%emt 0:00:00]} Rfc8 {[%emt 0:00:00]} 15. h3 {[%emt 0:00:00]}
Ngf6 {[%emt 0:00:00]} 16. Be3 {[%emt 0:00:00]} b4 {[%emt 0:00:00]} 17. Nb1 {
[%emt 0:00:00]} b3 {[%emt 0:00:00]} 18. Qd1 {[%emt 0:00:00]} a5 {[%emt 0:00:00]
} 19. Ra3 {[%emt 0:00:00]} Ba6 {[%emt 0:00:00]} 20. Rxb3 {[%emt 0:00:00]} Qc6 {
[%emt 0:00:00]} 21. Rc3 {[%emt 0:00:00]} c4 {[%emt 0:00:00]} 22. dxc4 {[%emt 0:
00:00]} Nc5 {[%emt 0:00:00]} 23. Nd4 {[%emt 0:00:00]} Qxa4 {[%emt 0:00:00]} 24.
e5 {[%emt 0:00:00]} Qxd1 {[%emt 0:00:00]} 25. Rxd1 {[%emt 0:00:00]} Nfe4 {
[%emt 0:00:00]} 26. Rcc1 {[%emt 0:00:00]} Rab8 {[%emt 0:00:00]} 27. Nb5 {
[%emt 0:00:00]} f5 {[%emt 0:00:00]} 28. exf6 {[%emt 0:00:00]} Bxf6 {[%emt 0:00:
00]} 29. Rc2 {[%emt 0:00:00]} Rd8 {[%emt 0:00:00]} 30. Rxd8+ {[%emt 0:02:38]}
Rxd8 {[%emt 0:00:00]} 31. Nd2 {[%emt 0:00:29]} Nxd2 {[%emt 0:00:00]} 32. Bxc5 {
[%emt 0:04:05]} Nb3 {[%emt 0:00:00]} 33. Ba3 {[%emt 0:01:08]} a4 {[%emt 0:10:
32]} 34. Kh2 {[%emt 0:04:25]} Bxb5 {[%emt 0:05:42]} 35. cxb5 {[%emt 0:00:02]}
Nd4 {[%emt 0:00:03]} 36. Rc5 {[%emt 0:00:26]} Be7 {[%emt 0:00:25]} 37. b6 {
[%emt 0:03:05]} Bxc5 {[%emt 0:00:59]} 38. Bxc5 {[%emt 0:00:01]} Nb5 {[%emt 0:
01:55]} 39. b7 {[%emt 0:02:29]} Rb8 {[%emt 0:00:27]} 40. Bc6 {[%emt 0:00:04]}
Kf7 {[%emt 0:00:18]} 41. Kg2 {[%emt 0:00:46]} e5 {[%emt 0:00:22]} 42. Bxb5 {
[%emt 0:00:28]} Rxb7 {[%emt 0:00:04]} 43. Bc4+ {[%emt 0:00:08]} Kf6 {[%emt 0:
00:09]} 44. Ba3 {[%emt 0:00:02]} Kf5 {[%emt 0:01:37]} 45. Bd5 {[%emt 0:00:34]}
Rb6 {[%emt 0:00:39]} 46. Kf3 {[%emt 0:00:10]} h5 {[%emt 0:00:32]} 47. h4 {
[%emt 0:00:17]} g6 {[%emt 0:00:28]} 48. Be4+ {[%emt 0:00:39]} Kf6 {[%emt 0:00:
04]} 49. Bc2 {[%emt 0:00:08]} Ra6 {[%emt 0:00:33]} 50. Ke4 {[%emt 0:00:04]} Ra8
{[%emt 0:00:04]} 1-0